[Event "*** Titled Tuesday Blitz"]
[Site "Chess.com"]
[Date "2021.03.02"]
[Round "2"]
[White "CheckThis4"]
[Black "DFeco"]
[Result "1-0"]
[WhiteElo "2619"]
[BlackElo "2266"]
[TimeControl "180+1"]
[EndTime "10:16:51 PST"]
[Termination "CheckThis4 won by resignation"]

1. d4 {[%clk 0:03:00.9]} 1... d5 {[%clk 0:02:59.3]} 2. Nf3 {[%clk 0:02:58.9]}
2... Nf6 {[%clk 0:02:58.1]} 3. c4 {[%clk 0:02:58.9]} 3... c6 {[%clk 0:02:57.7]}
4. Nc3 {[%clk 0:02:58.6]} 4... a6 {[%clk 0:02:57.3]} 5. e3 {[%clk 0:02:58]} 5...
Bf5 {[%clk 0:02:57.1]} 6. Bd3 {[%clk 0:02:54.8]} 6... Bg6 {[%clk 0:02:52.2]} 7.
Ne5 {[%clk 0:02:51.1]} 7... e6 {[%clk 0:02:50]} 8. Nxg6 {[%clk 0:02:50]} 8...
hxg6 {[%clk 0:02:49.3]} 9. h3 {[%clk 0:02:41.9]} 9... Nbd7 {[%clk 0:02:48.4]}
10. e4 {[%clk 0:02:29]} 10... dxc4 {[%clk 0:02:37.7]} 11. Bxc4 {[%clk
0:02:27.9]} 11... Bb4 {[%clk 0:02:36.8]} 12. e5 {[%clk 0:02:21.2]} 12... Ne4
{[%clk 0:02:29.2]} 13. Qf3 {[%clk 0:02:14.6]} 13... Nxc3 {[%clk 0:01:54.8]} 14.
bxc3 {[%clk 0:02:12.5]} 14... Be7 {[%clk 0:01:54.2]} 15. O-O {[%clk 0:02:11.3]}
15... Nb6 {[%clk 0:01:53.8]} 16. Bb3 {[%clk 0:02:08]} 16... a5 {[%clk
0:01:52.7]} 17. Qg3 {[%clk 0:01:55.2]} 17... a4 {[%clk 0:01:47.7]} 18. Bc2
{[%clk 0:01:54.8]} 18... O-O {[%clk 0:01:40.2]} 19. Rb1 {[%clk 0:01:52.6]} 19...
Qc7 {[%clk 0:01:25.6]} 20. h4 {[%clk 0:01:45.8]} 20... c5 {[%clk 0:01:21.1]} 21.
dxc5 {[%clk 0:01:36.7]} 21... Nc4 {[%clk 0:01:15.8]} 22. h5 {[%clk 0:01:31.1]}
22... gxh5 {[%clk 0:01:09.4]} 23. Qd3 {[%clk 0:01:23.5]} 23... g6 {[%clk
0:00:58.1]} 24. Qxc4 {[%clk 0:01:20.6]} 24... Qxe5 {[%clk 0:00:57.6]} 25. Bf4
{[%clk 0:01:17.6]} 25... Qf6 {[%clk 0:00:53.6]} 26. Rxb7 {[%clk 0:01:12.9]}
26... Rfc8 {[%clk 0:00:52.8]} 27. Be3 {[%clk 0:01:10.8]} 27... Ra5 {[%clk
0:00:35]} 28. Bxa4 {[%clk 0:01:03.9]} 28... Bxc5 {[%clk 0:00:17.8]} 29. Bd7
{[%clk 0:00:57.1]} 29... Rd8 {[%clk 0:00:11.5]} 30. Bxc5 {[%clk 0:00:53.5]} 1-0

[Event "*** Titled Tuesday Blitz"]
[Site "Chess.com"]
[Date "2021.03.02"]
[Round "2"]
[White "Redzishchess"]
[Black "ObligatePawnivore"]
[Result "1-0"]
[WhiteElo "2360"]
[BlackElo "1837"]
[TimeControl "180+1"]
[EndTime "10:16:51 PST"]
[Termination "Redzishchess won by resignation"]

1. e4 {[%clk 0:02:59.6]} 1... e6 {[%clk 0:03:00.1]} 2. d4 {[%clk 0:02:56]} 2...
d5 {[%clk 0:03:00.4]} 3. Nd2 {[%clk 0:02:56.5]} 3... Be7 {[%clk 0:02:59.8]} 4.
e5 {[%clk 0:02:53.9]} 4... c5 {[%clk 0:02:59.7]} 5. c3 {[%clk 0:02:53.9]} 5...
Nc6 {[%clk 0:02:59.6]} 6. Ndf3 {[%clk 0:02:48.8]} 6... cxd4 {[%clk 0:02:45.4]}
7. cxd4 {[%clk 0:02:49.7]} 7... Bb4+ {[%clk 0:02:44.4]} 8. Bd2 {[%clk
0:02:49.7]} 8... Qb6 {[%clk 0:02:44.8]} 9. a3 {[%clk 0:02:41.5]} 9... Bxd2+
{[%clk 0:02:35.5]} 10. Qxd2 {[%clk 0:02:42.4]} 10... Bd7 {[%clk 0:02:32.6]} 11.
Ne2 {[%clk 0:02:22.8]} 11... Nge7 {[%clk 0:02:27.5]} 12. Nc3 {[%clk 0:02:22.7]}
12... Na5 {[%clk 0:01:51.1]} 13. Rd1 {[%clk 0:01:30.7]} 13... O-O {[%clk
0:01:41.8]} 14. b4 {[%clk 0:01:24.7]} 14... Nc4 {[%clk 0:01:40.1]} 15. Bxc4
{[%clk 0:01:20]} 15... dxc4 {[%clk 0:01:41]} 16. Ne4 {[%clk 0:01:07.6]} 16...
Bc6 {[%clk 0:01:27.2]} 17. Nd6 {[%clk 0:01:07.5]} 17... Bxf3 {[%clk 0:00:59.7]}
18. gxf3 {[%clk 0:01:08.4]} 18... Qc6 {[%clk 0:00:58.3]} 19. Qf4 {[%clk
0:00:45.9]} 19... Nd5 {[%clk 0:00:35.3]} 20. Qg3 {[%clk 0:00:33.2]} 20... c3
{[%clk 0:00:28.9]} 21. O-O {[%clk 0:00:31.6]} 21... c2 {[%clk 0:00:28.8]} 22.
Rc1 {[%clk 0:00:31.1]} 22... Nc3 {[%clk 0:00:28.8]} 23. Rxc2 {[%clk 0:00:30.5]}
1-0

[Event "*** Titled Tuesday Blitz"]
[Site "Chess.com"]
[Date "2021.03.02"]
[Round "2"]
[White "zverr1"]
[Black "Darius321"]
[Result "0-1"]
[WhiteElo "2480"]
[BlackElo "2310"]
[TimeControl "180+1"]
[EndTime "10:16:54 PST"]
[Termination "Darius321 won by resignation"]

1. e4 {[%clk 0:03:00.9]} 1... c5 {[%clk 0:02:57.9]} 2. d4 {[%clk 0:03:00.1]}
2... cxd4 {[%clk 0:02:57.5]} 3. c3 {[%clk 0:03:00.7]} 3... e6 {[%clk 0:02:58]}
4. Nf3 {[%clk 0:02:59.3]} 4... d5 {[%clk 0:02:58]} 5. exd5 {[%clk 0:02:37.5]}
5... Qxd5 {[%clk 0:02:57.9]} 6. cxd4 {[%clk 0:02:35.6]} 6... Nf6 {[%clk
0:02:56.5]} 7. Nc3 {[%clk 0:02:36]} 7... Qd8 {[%clk 0:02:56.3]} 8. Bd3 {[%clk
0:02:30.5]} 8... Be7 {[%clk 0:02:56.1]} 9. h4 {[%clk 0:02:29.5]} 9... h6 {[%clk
0:02:55]} 10. Bf4 {[%clk 0:02:27.1]} 10... Nc6 {[%clk 0:02:52]} 11. Qd2 {[%clk
0:02:25]} 11... Nb4 {[%clk 0:02:51.3]} 12. Bb1 {[%clk 0:02:21.4]} 12... Nbd5
{[%clk 0:02:51]} 13. Be5 {[%clk 0:02:20.6]} 13... b6 {[%clk 0:02:38.8]} 14. Rh3
{[%clk 0:02:15]} 14... Bb7 {[%clk 0:02:34.4]} 15. Rg3 {[%clk 0:02:14.6]} 15...
Nh5 {[%clk 0:02:29.6]} 16. Rxg7 {[%clk 0:02:07.2]} 16... Nxg7 {[%clk 0:02:16.4]}
17. Bxg7 {[%clk 0:02:08.1]} 17... Rg8 {[%clk 0:01:55.1]} 18. Qxh6 {[%clk
0:02:02.5]} 18... Bf6 {[%clk 0:01:52.8]} 19. Bxf6 {[%clk 0:01:55]} 19... Qxf6
{[%clk 0:01:52.5]} 20. Qxf6 {[%clk 0:01:27.2]} 20... Nxf6 {[%clk 0:01:53.4]} 21.
Ng5 {[%clk 0:01:06.3]} 21... Bxg2 {[%clk 0:01:47]} 22. Bc2 {[%clk 0:00:39.8]}
22... Rh8 {[%clk 0:01:42.5]} 23. Nb5 {[%clk 0:00:35.1]} 23... Ke7 {[%clk
0:01:40.5]} 24. O-O-O {[%clk 0:00:28]} 24... Rxh4 {[%clk 0:01:37.5]} 25. Re1
{[%clk 0:00:19.6]} 25... Rg4 {[%clk 0:01:22]} 26. f4 {[%clk 0:00:13.1]} 26...
Rxf4 {[%clk 0:01:18.9]} 27. Nc7 {[%clk 0:00:13]} 27... Rc8 {[%clk 0:01:09.3]}
28. Ncxe6 {[%clk 0:00:11.1]} 28... fxe6 {[%clk 0:01:07.2]} 29. Rxe6+ {[%clk
0:00:11.4]} 29... Kd7 {[%clk 0:01:04.5]} 30. Kd2 {[%clk 0:00:08.9]} 30... Rf2+
{[%clk 0:00:59.9]} 31. Ke3 {[%clk 0:00:09.1]} 31... Rcxc2 {[%clk 0:00:58.7]} 0-1

[Event "*** Titled Tuesday Blitz"]
[Site "Chess.com"]
[Date "2021.03.02"]
[Round "2"]
[White "MirMan90"]
[Black "JoakimVonAnd"]
[Result "1-0"]
[WhiteElo "2744"]
[BlackElo "2505"]
[TimeControl "180+1"]
[EndTime "10:16:56 PST"]
[Termination "MirMan90 won by resignation"]

1. d4 {[%clk 0:02:56.4]} 1... Nf6 {[%clk 0:02:55.5]} 2. c4 {[%clk 0:02:56.5]}
2... e6 {[%clk 0:02:55.7]} 3. Nc3 {[%clk 0:02:56.6]} 3... Bb4 {[%clk 0:02:55.2]}
4. Qc2 {[%clk 0:02:56.7]} 4... O-O {[%clk 0:02:55.3]} 5. e4 {[%clk 0:02:56.4]}
5... d5 {[%clk 0:02:54.1]} 6. e5 {[%clk 0:02:56.6]} 6... Ne4 {[%clk 0:02:53.6]}
7. Bd3 {[%clk 0:02:56.2]} 7... c5 {[%clk 0:02:53.9]} 8. Ne2 {[%clk 0:02:54.1]}
8... cxd4 {[%clk 0:02:49.2]} 9. Nxd4 {[%clk 0:02:53.8]} 9... Qh4 {[%clk
0:02:40.3]} 10. Nf3 {[%clk 0:02:35.8]} 10... Qh5 {[%clk 0:01:54]} 11. Bxe4
{[%clk 0:02:31.2]} 11... dxe4 {[%clk 0:01:48.6]} 12. Qxe4 {[%clk 0:02:31]} 12...
Bd7 {[%clk 0:01:48.8]} 13. Bf4 {[%clk 0:02:19.2]} 13... Bc6 {[%clk 0:01:43.7]}
14. Qe3 {[%clk 0:02:15.1]} 14... Bxf3 {[%clk 0:01:29.7]} 15. gxf3 {[%clk
0:02:08.9]} 15... Nc6 {[%clk 0:01:24.7]} 16. O-O-O {[%clk 0:01:59.6]} 16... Rad8
{[%clk 0:01:11.1]} 17. Rhg1 {[%clk 0:01:44.3]} 17... Kh8 {[%clk 0:01:00]} 18.
Ne2 {[%clk 0:01:32.9]} 18... h6 {[%clk 0:00:31.4]} 19. Ng3 {[%clk 0:01:26.9]}
19... Qg6 {[%clk 0:00:26]} 20. Ne4 {[%clk 0:01:22]} 20... Rxd1+ {[%clk
0:00:19.8]} 21. Rxd1 {[%clk 0:01:19.4]} 21... Ba5 {[%clk 0:00:18.7]} 22. Rd7
{[%clk 0:01:12.5]} 22... Bb6 {[%clk 0:00:10.6]} 23. c5 {[%clk 0:01:11.9]} 23...
Ba5 {[%clk 0:00:11]} 24. a3 {[%clk 0:01:11.7]} 24... Rd8 {[%clk 0:00:10.1]} 25.
Rxd8+ {[%clk 0:01:07]} 25... Bxd8 {[%clk 0:00:11]} 26. Qd3 {[%clk 0:00:55.2]}
26... Qg1+ {[%clk 0:00:08.8]} 27. Kc2 {[%clk 0:00:53.9]} 27... Qxf2+ {[%clk
0:00:09]} 28. Nxf2 {[%clk 0:00:53.5]} 1-0

[Event "*** Titled Tuesday Blitz"]
[Site "Chess.com"]
[Date "2021.03.02"]
[Round "2"]
[White "mishanick"]
[Black "sara_khm"]
[Result "1-0"]
[WhiteElo "3014"]
[BlackElo "2597"]
[TimeControl "180+1"]
[EndTime "10:16:58 PST"]
[Termination "mishanick won by resignation"]

1. e4 {[%clk 0:02:52.3]} 1... e5 {[%clk 0:02:59.2]} 2. Nf3 {[%clk 0:02:51.7]}
2... Nc6 {[%clk 0:02:59.2]} 3. Bb5 {[%clk 0:02:52.2]} 3... a6 {[%clk 0:02:59.1]}
4. Ba4 {[%clk 0:02:52.2]} 4... Nf6 {[%clk 0:02:58.7]} 5. O-O {[%clk 0:02:52.5]}
5... b5 {[%clk 0:02:58.9]} 6. Bb3 {[%clk 0:02:52.4]} 6... Bc5 {[%clk 0:02:59.5]}
7. c3 {[%clk 0:02:52.7]} 7... d6 {[%clk 0:02:59.4]} 8. d4 {[%clk 0:02:52.7]}
8... Bb6 {[%clk 0:02:59.6]} 9. a4 {[%clk 0:02:49.6]} 9... Rb8 {[%clk 0:02:59.7]}
10. a5 {[%clk 0:02:47.9]} 10... Ba7 {[%clk 0:02:59.1]} 11. h3 {[%clk 0:02:43]}
11... Bb7 {[%clk 0:02:55.3]} 12. Re1 {[%clk 0:02:40.6]} 12... O-O {[%clk
0:02:51.9]} 13. Bg5 {[%clk 0:02:37.5]} 13... h6 {[%clk 0:02:47.9]} 14. Bh4
{[%clk 0:02:37.7]} 14... exd4 {[%clk 0:02:44.4]} 15. cxd4 {[%clk 0:02:32.9]}
15... g5 {[%clk 0:02:29.6]} 16. Bg3 {[%clk 0:02:29.8]} 16... Nb4 {[%clk
0:02:23.3]} 17. Nc3 {[%clk 0:02:27]} 17... Re8 {[%clk 0:02:17.4]} 18. Qd2 {[%clk
0:01:59.3]} 18... Rc8 {[%clk 0:02:07.8]} 19. Nxg5 {[%clk 0:01:52.8]} 19... hxg5
{[%clk 0:01:57.7]} 20. Qxg5+ {[%clk 0:01:53.7]} 20... Kh7 {[%clk 0:01:28.7]} 21.
Bxf7 {[%clk 0:01:53.5]} 21... Rg8 {[%clk 0:01:20]} 22. Bxg8+ {[%clk 0:01:51.3]}
22... Nxg8 {[%clk 0:01:20.1]} 23. Qf5+ {[%clk 0:01:42]} 23... Kg7 {[%clk
0:01:18.4]} 24. Qg4+ {[%clk 0:01:40]} 24... Kh7 {[%clk 0:01:16.1]} 25. e5 {[%clk
0:01:24.6]} 25... Qf8 {[%clk 0:00:59.4]} 26. exd6 {[%clk 0:01:22]} 26... cxd6
{[%clk 0:00:58.7]} 27. Re6 {[%clk 0:01:14.3]} 27... Qf7 {[%clk 0:00:46.1]} 28.
Bxd6 {[%clk 0:01:08.6]} 28... Nh6 {[%clk 0:00:43.2]} 29. Rxh6+ {[%clk
0:00:51.7]} 29... Kxh6 {[%clk 0:00:42.8]} 30. Bxb4 {[%clk 0:00:51]} 30... Rg8
{[%clk 0:00:41.3]} 31. Qh4+ {[%clk 0:00:50.3]} 31... Qh5 {[%clk 0:00:37.8]} 32.
Qxh5+ {[%clk 0:00:47.7]} 32... Kxh5 {[%clk 0:00:38.2]} 33. d5 {[%clk 0:00:47.9]}
33... Bd4 {[%clk 0:00:36.2]} 34. Rd1 {[%clk 0:00:47.1]} 34... Be5 {[%clk
0:00:33]} 35. g3 {[%clk 0:00:45.4]} 35... Rd8 {[%clk 0:00:31.7]} 36. Be7 {[%clk
0:00:44.1]} 1-0

[Event "*** Titled Tuesday Blitz"]
[Site "Chess.com"]
[Date "2021.03.02"]
[Round "2"]
[White "Caracternin123"]
[Black "lamomiablanca"]
[Result "0-1"]
[WhiteElo "2602"]
[BlackElo "2339"]
[TimeControl "180+1"]
[EndTime "10:16:58 PST"]
[Termination "lamomiablanca won by resignation"]

1. e4 {[%clk 0:03:00.9]} 1... c5 {[%clk 0:02:59.1]} 2. Nf3 {[%clk 0:02:53.9]}
2... Nc6 {[%clk 0:02:56.8]} 3. d4 {[%clk 0:02:54.1]} 3... cxd4 {[%clk
0:02:55.3]} 4. Nxd4 {[%clk 0:02:55]} 4... g6 {[%clk 0:02:55.1]} 5. c4 {[%clk
0:02:50]} 5... Nf6 {[%clk 0:02:54]} 6. Nc3 {[%clk 0:02:49.3]} 6... d6 {[%clk
0:02:54.1]} 7. Be2 {[%clk 0:02:40.3]} 7... Nxd4 {[%clk 0:02:53]} 8. Qxd4 {[%clk
0:02:41.2]} 8... Bg7 {[%clk 0:02:53.3]} 9. Be3 {[%clk 0:02:41.3]} 9... O-O
{[%clk 0:02:53.3]} 10. Qd2 {[%clk 0:02:40.8]} 10... a5 {[%clk 0:02:53.4]} 11. h3
{[%clk 0:02:40.8]} 11... a4 {[%clk 0:02:53]} 12. O-O {[%clk 0:02:40.2]} 12...
Qa5 {[%clk 0:02:52.3]} 13. Rac1 {[%clk 0:02:37.5]} 13... Be6 {[%clk 0:02:51.8]}
14. Rfd1 {[%clk 0:02:37.1]} 14... Rfc8 {[%clk 0:02:51]} 15. Nd5 {[%clk
0:02:15.8]} 15... Qxd2 {[%clk 0:02:31.2]} 16. Nxf6+ {[%clk 0:02:00.9]} 16...
Bxf6 {[%clk 0:02:30.2]} 17. Rxd2 {[%clk 0:02:01.8]} 17... b5 {[%clk 0:01:54.3]}
18. Rdc2 {[%clk 0:01:56.8]} 18... bxc4 {[%clk 0:01:47.7]} 19. Bxc4 {[%clk
0:01:57.7]} 19... Bxc4 {[%clk 0:01:47.4]} 20. Rxc4 {[%clk 0:01:58.6]} 20... Rxc4
{[%clk 0:01:47.6]} 21. Rxc4 {[%clk 0:01:59.5]} 21... Bxb2 {[%clk 0:01:47.6]} 22.
Rc7 {[%clk 0:01:55.6]} 22... Kf8 {[%clk 0:01:32.9]} 23. Bg5 {[%clk 0:01:16.5]}
23... f6 {[%clk 0:01:30.4]} 24. Bf4 {[%clk 0:01:14.6]} 24... a3 {[%clk
0:01:27.5]} 25. Bd2 {[%clk 0:01:07.9]} 25... Ra4 {[%clk 0:01:15.6]} 26. f3
{[%clk 0:01:05.1]} 26... Rd4 {[%clk 0:01:14.6]} 27. Rc2 {[%clk 0:01:00.3]} 27...
f5 {[%clk 0:01:07.9]} 28. exf5 {[%clk 0:00:58.9]} 28... gxf5 {[%clk 0:01:07.3]}
29. Kf2 {[%clk 0:00:59.2]} 29... Kf7 {[%clk 0:01:02.4]} 30. Ke3 {[%clk
0:00:58.4]} 30... f4+ {[%clk 0:01:01]} 31. Ke2 {[%clk 0:00:58.3]} 31... d5
{[%clk 0:00:58.6]} 32. Bc3 {[%clk 0:00:51.3]} 32... Rc4 {[%clk 0:00:57.1]} 33.
Kd3 {[%clk 0:00:51.1]} 33... Rxc3+ {[%clk 0:00:48.9]} 34. Rxc3 {[%clk 0:00:52]}
34... Bxc3 {[%clk 0:00:48.7]} 35. Kxc3 {[%clk 0:00:52.9]} 35... e5 {[%clk
0:00:48.9]} 36. Kb3 {[%clk 0:00:53.2]} 36... e4 {[%clk 0:00:49.2]} 37. Kc3
{[%clk 0:00:46.5]} 37... e3 {[%clk 0:00:46.9]} 38. Kd3 {[%clk 0:00:46.3]} 38...
d4 {[%clk 0:00:46]} 39. g4 {[%clk 0:00:28.2]} 0-1

[Event "*** Titled Tuesday Blitz"]
[Site "Chess.com"]
[Date "2021.03.02"]
[Round "2"]
[White "lacafi"]
[Black "KubaGepard"]
[Result "1-0"]
[WhiteElo "2178"]
[BlackElo "2398"]
[TimeControl "180+1"]
[EndTime "10:16:59 PST"]
[Termination "lacafi won by resignation"]

1. d4 {[%clk 0:03:00.9]} 1... d5 {[%clk 0:02:59.6]} 2. Nf3 {[%clk 0:03:01.1]}
2... Nf6 {[%clk 0:02:59.7]} 3. e3 {[%clk 0:03:01]} 3... e6 {[%clk 0:02:59.3]} 4.
Bd3 {[%clk 0:03:01.1]} 4... Bd6 {[%clk 0:02:55]} 5. Nbd2 {[%clk 0:03:01.3]} 5...
O-O {[%clk 0:02:52.9]} 6. Qe2 {[%clk 0:03:01.4]} 6... Nbd7 {[%clk 0:02:48.4]} 7.
e4 {[%clk 0:02:59.7]} 7... dxe4 {[%clk 0:02:47.7]} 8. Nxe4 {[%clk 0:03:00.3]}
8... Nxe4 {[%clk 0:02:39.9]} 9. Qxe4 {[%clk 0:03:00.6]} 9... Nf6 {[%clk
0:02:39.4]} 10. Qe2 {[%clk 0:03:00.9]} 10... Nd5 {[%clk 0:02:37.8]} 11. c3
{[%clk 0:02:59.4]} 11... c5 {[%clk 0:02:31.2]} 12. dxc5 {[%clk 0:02:58.5]} 12...
Bxc5 {[%clk 0:02:31.2]} 13. O-O {[%clk 0:02:59.1]} 13... Qf6 {[%clk 0:02:25.8]}
14. Bg5 {[%clk 0:02:55.9]} 14... Nf4 {[%clk 0:02:24.3]} 15. Qd1 {[%clk
0:02:28.1]} 15... Nxd3 {[%clk 0:02:01.5]} 16. Bxf6 {[%clk 0:02:26.6]} 16... Nxf2
{[%clk 0:01:58.9]} 17. Rxf2 {[%clk 0:02:15.1]} 17... gxf6 {[%clk 0:01:56.1]} 18.
Kf1 {[%clk 0:01:53.1]} 18... Bxf2 {[%clk 0:01:24.1]} 19. Kxf2 {[%clk 0:01:54]}
19... e5 {[%clk 0:01:23.8]} 20. Qd6 {[%clk 0:01:47.9]} 20... Be6 {[%clk
0:01:23]} 21. Qe7 {[%clk 0:01:38]} 21... Kg7 {[%clk 0:01:22.2]} 22. b3 {[%clk
0:01:35.5]} 22... b6 {[%clk 0:01:21.3]} 23. c4 {[%clk 0:01:34.6]} 23... a5
{[%clk 0:01:20]} 24. Rd1 {[%clk 0:01:23.7]} 24... a4 {[%clk 0:01:17]} 25. Rd2
{[%clk 0:01:23.2]} 25... axb3 {[%clk 0:01:15.6]} 26. axb3 {[%clk 0:01:24.1]}
26... Rfb8 {[%clk 0:01:13.4]} 27. h3 {[%clk 0:01:19.3]} 27... b5 {[%clk
0:01:12.5]} 28. c5 {[%clk 0:01:15.8]} 28... Bxb3 {[%clk 0:01:11.9]} 29. c6
{[%clk 0:01:09]} 29... Be6 {[%clk 0:01:10.7]} 30. g4 {[%clk 0:01:06.2]} 30... b4
{[%clk 0:01:09.5]} 31. Nh4 {[%clk 0:01:05.7]} 31... b3 {[%clk 0:01:09.2]} 32. c7
{[%clk 0:00:53.1]} 32... Rb7 {[%clk 0:01:02.5]} 33. g5 {[%clk 0:00:24.2]} 33...
b2 {[%clk 0:00:49.1]} 34. Qxf6+ {[%clk 0:00:20.5]} 34... Kf8 {[%clk 0:00:39.4]}
35. Rd8+ {[%clk 0:00:20.7]} 1-0

[Event "*** Titled Tuesday Blitz"]
[Site "Chess.com"]
[Date "2021.03.02"]
[Round "2"]
[White "shaheus"]
[Black "LubovMarkelova"]
[Result "1-0"]
[WhiteElo "2447"]
[BlackElo "2234"]
[TimeControl "180+1"]
[EndTime "10:17:00 PST"]
[Termination "shaheus won by resignation"]

1. e4 {[%clk 0:03:00.9]} 1... e6 {[%clk 0:02:59.2]} 2. Nf3 {[%clk 0:03:01.1]}
2... d5 {[%clk 0:02:59.6]} 3. Nc3 {[%clk 0:03:01.8]} 3... d4 {[%clk 0:02:58.9]}
4. Ne2 {[%clk 0:03:01.2]} 4... c5 {[%clk 0:02:59.5]} 5. c3 {[%clk 0:03:01.4]}
5... Nc6 {[%clk 0:02:57.4]} 6. cxd4 {[%clk 0:03:01]} 6... cxd4 {[%clk
0:02:57.5]} 7. Qa4 {[%clk 0:03:01.1]} 7... Nf6 {[%clk 0:02:51.4]} 8. Nexd4
{[%clk 0:02:50.7]} 8... Bd7 {[%clk 0:02:50.6]} 9. Bb5 {[%clk 0:02:36]} 9... Nxd4
{[%clk 0:02:49.5]} 10. Nxd4 {[%clk 0:02:34.3]} 10... Bc5 {[%clk 0:02:40]} 11.
Bxd7+ {[%clk 0:02:08.3]} 11... Qxd7 {[%clk 0:02:38.1]} 12. Qxd7+ {[%clk
0:02:07.4]} 12... Kxd7 {[%clk 0:02:37.7]} 13. Nb3 {[%clk 0:02:05.7]} 13... Rac8
{[%clk 0:02:32.2]} 14. f3 {[%clk 0:02:00.7]} 14... Bb6 {[%clk 0:02:18.1]} 15.
Kd1 {[%clk 0:01:31.9]} 15... a5 {[%clk 0:02:11.5]} 16. a4 {[%clk 0:01:28.7]}
16... Rc4 {[%clk 0:02:09.7]} 17. d3 {[%clk 0:01:24]} 17... Rb4 {[%clk
0:02:03.3]} 18. Ra3 {[%clk 0:01:18.4]} 18... Ke7 {[%clk 0:01:21.6]} 19. Bd2
{[%clk 0:01:17.2]} 19... Rd8 {[%clk 0:01:16]} 20. Ke2 {[%clk 0:01:08.9]} 20...
Nd7 {[%clk 0:01:10.1]} 21. Bxb4+ {[%clk 0:01:06.8]} 21... axb4 {[%clk 0:01:11]}
22. Raa1 {[%clk 0:01:05.7]} 22... Ne5 {[%clk 0:01:10.1]} 23. Rhd1 {[%clk
0:01:04.1]} 23... Nc6 {[%clk 0:01:05.9]} 24. a5 {[%clk 0:00:55.1]} 24... Nd4+
{[%clk 0:01:03]} 25. Nxd4 {[%clk 0:00:52.6]} 25... Bxd4 {[%clk 0:01:03.9]} 26.
Ra4 {[%clk 0:00:47.8]} 26... Bc5 {[%clk 0:00:55.2]} 27. d4 {[%clk 0:00:43.3]}
27... Bxd4 {[%clk 0:00:41.2]} 28. Rxb4 {[%clk 0:00:42.1]} 28... e5 {[%clk
0:00:41.5]} 29. Rxb7+ {[%clk 0:00:41.7]} 29... Kf6 {[%clk 0:00:41.6]} 30. Rc1
{[%clk 0:00:36.6]} 30... Rd6 {[%clk 0:00:37.9]} 31. b4 {[%clk 0:00:34.5]} 31...
Kg6 {[%clk 0:00:33.3]} 32. b5 {[%clk 0:00:34.4]} 32... f5 {[%clk 0:00:31.3]} 33.
Rc6 {[%clk 0:00:34.3]} 1-0

[Event "*** Titled Tuesday Blitz"]
[Site "Chess.com"]
[Date "2021.03.02"]
[Round "2"]
[White "chesslh19"]
[Black "alejogarcia1999"]
[Result "0-1"]
[WhiteElo "2248"]
[BlackElo "2543"]
[TimeControl "180+1"]
[EndTime "10:17:05 PST"]
[Termination "alejogarcia1999 won by resignation"]

1. e4 {[%clk 0:02:55.5]} 1... c5 {[%clk 0:02:59.5]} 2. Nf3 {[%clk 0:02:54.9]}
2... e6 {[%clk 0:03:00.1]} 3. d4 {[%clk 0:02:55.1]} 3... cxd4 {[%clk 0:03:01]}
4. Nxd4 {[%clk 0:02:55.7]} 4... Nc6 {[%clk 0:03:01.6]} 5. Nc3 {[%clk 0:02:55.1]}
5... Nf6 {[%clk 0:03:01.9]} 6. Ndb5 {[%clk 0:02:54.1]} 6... d6 {[%clk
0:03:01.9]} 7. Bf4 {[%clk 0:02:53.7]} 7... e5 {[%clk 0:03:02.4]} 8. Bg5 {[%clk
0:02:53.2]} 8... a6 {[%clk 0:03:03.1]} 9. Na3 {[%clk 0:02:52.9]} 9... b5 {[%clk
0:03:04]} 10. Nd5 {[%clk 0:02:53.1]} 10... Be7 {[%clk 0:03:04]} 11. Bxf6 {[%clk
0:02:53.8]} 11... Bxf6 {[%clk 0:03:04.9]} 12. c3 {[%clk 0:02:54.3]} 12... Bg5
{[%clk 0:03:04.6]} 13. Nc2 {[%clk 0:02:54.7]} 13... Rb8 {[%clk 0:03:05.1]} 14.
a4 {[%clk 0:02:29.4]} 14... bxa4 {[%clk 0:03:06]} 15. Ncb4 {[%clk 0:02:29.5]}
15... Nxb4 {[%clk 0:03:05.8]} 16. Nxb4 {[%clk 0:02:00.3]} 16... Bd7 {[%clk
0:02:26.1]} 17. Qxd6 {[%clk 0:01:52.1]} 17... Be7 {[%clk 0:02:22.6]} 18. Qxe5
{[%clk 0:01:30.4]} 18... O-O {[%clk 0:02:22.3]} 19. Bxa6 {[%clk 0:01:20.4]}
19... Re8 {[%clk 0:02:08.5]} 20. Qg3 {[%clk 0:01:13.9]} 20... Bxb4 {[%clk
0:02:05.9]} 21. cxb4 {[%clk 0:01:13.3]} 21... Rxe4+ {[%clk 0:02:05.9]} 22. Kf1
{[%clk 0:01:07.4]} 22... Rexb4 {[%clk 0:01:46.4]} 23. h4 {[%clk 0:00:34.2]}
23... Qf6 {[%clk 0:01:43.5]} 24. Be2 {[%clk 0:00:31.3]} 24... Rxb2 {[%clk
0:01:41.4]} 25. Rd1 {[%clk 0:00:29.2]} 25... Be6 {[%clk 0:01:09.4]} 26. h5
{[%clk 0:00:25.8]} 26... h6 {[%clk 0:00:47.1]} 27. Rh4 {[%clk 0:00:08.4]} 27...
a3 {[%clk 0:00:43.8]} 28. Qxa3 {[%clk 0:00:04.8]} 28... Qxh4 {[%clk 0:00:42.3]}
0-1

[Event "*** Titled Tuesday Blitz"]
[Site "Chess.com"]
[Date "2021.03.02"]
[Round "2"]
[White "GMJustin"]
[Black "MrChampion_Coach"]
[Result "0-1"]
[WhiteElo "2251"]
[BlackElo "2461"]
[TimeControl "180+1"]
[EndTime "10:17:05 PST"]
[Termination "MrChampion_Coach won on time"]

1. d4 {[%clk 0:02:56.9]} 1... Nf6 {[%clk 0:02:59.2]} 2. c4 {[%clk 0:02:56]} 2...
e6 {[%clk 0:02:59.4]} 3. Nf3 {[%clk 0:02:53.9]} 3... d5 {[%clk 0:02:59.2]} 4.
Bg5 {[%clk 0:02:53]} 4... dxc4 {[%clk 0:02:46.2]} 5. e4 {[%clk 0:02:49]} 5...
Be7 {[%clk 0:02:05]} 6. e5 {[%clk 0:02:38.3]} 6... Nd5 {[%clk 0:02:02.9]} 7.
Bxe7 {[%clk 0:02:37.2]} 7... Qxe7 {[%clk 0:02:03.8]} 8. Bxc4 {[%clk 0:02:35.5]}
8... Qb4+ {[%clk 0:02:03.8]} 9. Nbd2 {[%clk 0:02:33.9]} 9... Qxb2 {[%clk
0:02:00.5]} 10. O-O {[%clk 0:02:28.2]} 10... Nc3 {[%clk 0:01:57.9]} 11. Qe1
{[%clk 0:02:15.7]} 11... O-O {[%clk 0:01:43.6]} 12. Bb3 {[%clk 0:01:56.6]} 12...
Nb5 {[%clk 0:01:20.6]} 13. Rb1 {[%clk 0:01:14.5]} 13... Qc3 {[%clk 0:01:16.1]}
14. Qe4 {[%clk 0:01:07.2]} 14... Qc6 {[%clk 0:00:44.6]} 15. Qh4 {[%clk
0:00:43.3]} 15... Qd7 {[%clk 0:00:33]} 16. Rfc1 {[%clk 0:00:12.1]} 16... Qd8
{[%clk 0:00:27.2]} 17. Qg4 {[%clk 0:00:07]} 17... Nc6 {[%clk 0:00:24]} 18. a4
{[%clk 0:00:01.5]} 18... Nbxd4 {[%clk 0:00:22.4]} 19. Nxd4 {[%clk 0:00:01.4]}
19... Nxd4 {[%clk 0:00:23.3]} 0-1